Workbook

Sheet Muni.Tax- E
F1: Energy | G1: E | H1: Ordinance City Tax Rate = | K1: 0.06
A3: Total Bill Excluding City Tax and City Tax Related Additional Revenue | D3: 1000 | F3: Calculated Grossed-up City Tax Rate = | I3: 0.06070057579
A4: City Tax and City Tax Related Additional Revenue | D4: =ROUND(D3*I14,2) -> 60.7
A5: Gross Taxable Revenue | D5: =D3+D4 -> 1060.7 | H5: Electric State Utility Tax Rate = | I5: =+'Pub Util Tax'!D3 -> 0.038734
H6: Natural Gas State Utility Tax Rate = | I6: =+'Pub Util Tax'!D4 -> 0.03852
A7: Allowed City Tax Deductions | H7: State Utility Tax Rate w/ Loss Adjustment = | I7: =IF(G1="E",($I$5-($I$5*$I$12)),($I$6-($I$6*$I$11))) -> 0.03840557441
A8: Credit Losses | C8: N | D8: =IF(C8="Y",D5*I10,0) -> 0 | H8: State Filing Fee Rate = | I8: =+'Annual Filing Fee'!A1 -> 0.002
A9: State Utility Tax | C9: Y | D9: =IF(C9="Y",D5*I7,0) -> 40.73679278 | H9: State Filing Fee w/ Loss Adjustment = | I9: =$I$8-($I$8*$I$10) -> 0.001983042
A10: State Filing Fee | C10: N | D10: =IF(C10="Y",D5*I9,0) -> 0 | H10: Bad Debts Rate = | I10: =+SUMIF($H$11:$H$12,G1,I11:I12) -> 0.008479
A11: City Tax | C11: Y | D11: =IF(C11="Y",D4-D4*I7-D4*I9-D4*I10,0) -> 57.73373568 | H11: G | I11: =+'3.05 G'!E13 -> 0.005124
A12: Total Deductions | D12: =SUM(D8:D11) -> 98.47052846 | H12: E | I12: =+'3.04 E'!E14 -> 0.008479
A14: Net City Tax Taxable Revenue | D14: =D5-D12 -> 962.2294715 | H14: Grossed-up City Tax Rate to Use in CLX = | I14: =ROUND(I3,5) -> 0.0607
A15: City Tax Payable | D15: =D14*K1 -> 57.73376829
A16: Additional State Utility Tax due to City Tax | D16: =D4*I7 -> 2.331218367
A17: Additional State Filing Fee due to City Tax | D17: =D4*I8 -> 0.1214
A18: Additional Credit Losses due to City Tax | D18: =D4*I10 -> 0.5146753
G19: Y
A20: Total Cost due to City Tax | D20: =SUM(D15:D18) -> 60.70106196 | F20: =ABS(IF(ROUND(F25,0)<>0,F25,0))+IF(ABS(ROUND(D22,0)-ABS(ROUND(F25,0)))=0,ABS(D22)+ABS(F25),0)+ABS(IF(ABS(D22)<>0,D22,0)) -> 0.002156526561 | G20: N
A22: Difference between collected and paid | D22: =+D4-D20 -> -0.001061959054 | E22: =+D22/D4 -> -1.749520682e-05 | F22: [Hit "Refresh" button until F25 and D22 are near zero]
F23: [Manual adjustment of I3 is necessary in some cases]
A25: Difference between City Tax Deduction and City Tax Paid | F25: =IF(C11="Y",D11-D15,0) -> -3.260845381e-05
A27: Difference in collection resulting from using SAP rate = | F27: =D20-(D3*I14) -> 0.001061959054

Sheet 3.04 E
L1: As Used in UE-190529 and UG-190530
H3: PUGET SOUND ENERGY-ELECTRIC
H4: CONVERSION FACTOR
E5: Page 3.04 | H5: FOR THE TWELVE MONTHS ENDED DECEMBER 31, 2018
B6: PUGET SOUND ENERGY-ELECTRIC | H6: GENERAL RATE CASE
B7: CONVERSION FACTOR - ELECTRIC
H8: LINE
H9: NO. | I9: DESCRIPTION | L9: RATE
A11: LINE | H11: 1 | I11: BAD DEBTS | L11: 0.008479
A12: NO. | B12: DESCRIPTION | E12: RATE | H12: 2 | I12: ANNUAL FILING FEE | L12: 0.002
H13: 3 | I13: ="STATE UTILITY TAX ( "&K13*100&"% - ( LINE 1 * "&K13*100&"% ) )" -> STATE UTILITY TAX ( 3.8734% - ( LINE 1 * 3.8734% ) ) | K13: 0.038734 | L13: =ROUND(K13-(K13*L11),6) -> 0.038406
A14: 1 | B14: BAD DEBTS | E14: =+L11 -> 0.008479 | H14: 4
A15: 2 | B15: ANNUAL FILING FEE | E15: ='Annual Filing Fee'!A1 -> 0.002 | H15: 5 | I15: SUM OF TAXES OTHER | L15: =ROUND(SUM(L11:L13),6) -> 0.048885
A16: 3 | B16: ="STATE UTILITY TAX - NET OF BAD DEBTS ( "&D16*100&"% - ( LINE 1 * "&D16*100&"%) )" -> STATE UTILITY TAX - NET OF BAD DEBTS ( 3.8734% - ( LINE 1 * 3.8734%) ) | D16: ='Pub Util Tax'!D3 -> 0.038734 | E16: =ROUND(D16-(D16*E14),6) -> 0.038406 | H16: 6
A17: 4 | H17: 7 | I17: ="CONVERSION FACTOR EXCLUDING FEDERAL INCOME TAX ( 1 - LINE "&$A$15&" )" -> CONVERSION FACTOR EXCLUDING FEDERAL INCOME TAX ( 1 - LINE 2 ) | L17: =ROUND(1-L15,6) -> 0.951115
A18: 5 | B18: SUM OF TAXES OTHER | E18: =ROUND(SUM(E14:E16),6) -> 0.048885 | H18: 8 | I18: FEDERAL INCOME TAX | K18: 0.21 | L18: =ROUND((L17)*K18,6) -> 0.199734
A19: 6 | H19: 9 | I19: ="CONVERSION FACTOR INCL FEDERAL INCOME TAX ( LINE "&H17&" - LINE "&H18&" ) " -> CONVERSION FACTOR INCL FEDERAL INCOME TAX ( LINE 7 - LINE 8 ) | L19: =L17-L18 -> 0.751381
A20: 7 | B20: CONVERSION FACTOR EXCLUDING FEDERAL INCOME TAX ( 1 - LINE 5) | E20: =ROUND(1-E18,6) -> 0.951115
A21: 8 | B21: FEDERAL INCOME TAX ( LINE 7 * 21%) | D21: 0.21 | E21: =ROUND((E20)*D21,6) -> 0.199734
A22: 9 | B22: CONVERSION FACTOR INCL FEDERAL INCOME TAX ( LINE 5 + LINE 8 ) | E22: =ROUND(1-E21-E18,6) -> 0.751381
A24: =+#REF! -> 

Sheet 3.05 G
M1: As Used in UE-190529 and UG-190530
I2: PUGET SOUND ENERGY-GAS (PER SETTLEMENT)
I3: CONVERSION FACTOR
E4: Page 3.05 | I4: FOR THE TWELVE MONTHS ENDED DECEMBER 31, 2018
B5: PUGET SOUND ENERGY-GAS | I5: GENERAL RATE CASE
B6: CONVERSION FACTOR - GAS
I7: LINE
I8: NO. | J8: DESCRIPTION | L8: RATE | M8: AMOUNT
A10: LINE | I10: 1 | J10: BAD DEBTS | M10: 0.005124
A11: NO. | B11: DESCRIPTION | E11: RATE | I11: =+I10+1 -> 2 | J11: ANNUAL FILING FEE | M11: 0.002
I12: 3 | J12: ="STATE UTILITY TAX ( "&L12*100&"% - ( LINE 1 * "&L12*100&"% ) )" -> STATE UTILITY TAX ( 3.852% - ( LINE 1 * 3.852% ) ) | L12: 0.03852 | M12: =ROUND(L12-(L12*M10),6) -> 0.038323
A13: 1 | B13: BAD DEBTS | E13: =+M10 -> 0.005124 | I13: 4
A14: 2 | B14: ANNUAL FILING FEE | E14: ='Annual Filing Fee'!A1 -> 0.002 | I14: 5 | J14: SUM OF TAXES OTHER | M14: =SUM(M10:M13) -> 0.045447
A15: 3 | B15: ="STATE UTILITY TAX - NET OF BAD DEBTS ( "&D15*100&"% - ( LINE 1 * "&D15*100&"%) )" -> STATE UTILITY TAX - NET OF BAD DEBTS ( 3.852% - ( LINE 1 * 3.852%) ) | D15: ='Pub Util Tax'!$D$4 -> 0.03852 | E15: =ROUND(D15-(D15*E13),6) -> 0.038323 | I15: 6
A16: 4 | I16: 7 | J16: CONVERSION FACTOR EXCLUDING FEDERAL INCOME TAX ( 1 - LINE 5) | M16: =ROUND(1-M14,6) -> 0.954553
A17: 5 | B17: SUM OF TAXES OTHER | E17: =ROUND(SUM(E13:E15),6) -> 0.045447 | I17: 8 | J17: FEDERAL INCOME TAX ( LINE 7 * 21%) | L17: 0.21 | M17: =ROUND(M16*L17,6) -> 0.200456
A18: 6 | I18: 9
A19: 7 | B19: CONVERSION FACTOR EXCLUDING FEDERAL INCOME TAX ( 1 - LINE 5) | E19: =ROUND(1-E17,6) -> 0.954553 | I19: 10 | J19: CONVERSION FACTOR | M19: =M16-M17 -> 0.754097
A20: 8 | B20: FEDERAL INCOME TAX ( LINE 7 * 21%) | D20: 0.21 | E20: =ROUND((E19)*D20,6) -> 0.200456
A21: 9 | B21: CONVERSION FACTOR INCL FEDERAL INCOME TAX ( LINE 5 + LINE 8 ) | E21: =ROUND(1-E20-E17,6) -> 0.754097
A24: =+#REF! -> 

Sheet Annual Filing Fee
A1: 0.002 | B1: Link updated as of 7/28/2020
A2: RCW 80.24.010 | B2: http://apps.leg.wa.gov/rcw/default.aspx?cite=80.24.010
A4: Companies to file reports of gross revenue and pay fees — Delinquent fee payments.
A5: Every public service company subject to regulation by the commission shall, on or before the
A6: date specified by the commission for filing annual reports under RCW 80.04.080, file with the
A7: commission a statement on oath showing its gross operating revenue from intrastate
A8: operations for the preceding calendar year or portion thereof and pay to the commission a
A9: fee equal to one-tenth of one percent of the first fifty thousand dollars of gross operating
A10: revenue, plus two-tenths of one percent of any gross operating revenue in excess of fifty
A11: thousand dollars: PROVIDED, That the commission may, by rule, set minimum fees that do
A12: not exceed the cost of collecting the fees. The commission may by rule waive any or all of
A13: the minimum fee established pursuant to this section.
A15: The percentage rates of gross operating revenue to be paid in any year may be decreased
A16: by the commission for any class of companies subject to the payment of such fees, by
A17: general order entered before March 1st of such year, and for such purpose such companies
A18: shall be classified as follows:
A20: Electrical, gas, water, telecommunications, and irrigation companies shall constitute class
A21: one. Every other company subject to regulation by the commission, for which regulatory fees
A22: are not otherwise fixed by law shall pay fees as herein provided and shall constitute
A23: additional classes according to kinds of businesses engaged in.
A25: Any payment of the fee imposed by this section made after its due date shall include a
A26: late fee of two percent of the amount due. Delinquent fees shall accrue interest at the rate
A27: of one percent per month.
A29: [2003 c 296 § 1; 1994 c 83 § 1; 1990 c 48 § 1; 1985 c 450 § 14; 1961 c 14 § 80.24.010. Prior: 1955
A30: c 125 § 2; prior: 1939 c 123 § 1, part; 1937 c 158 § 1, part; 1929 c 107 § 1, part; 1923 c 107 § 1, part;
A31: 1921 c 113 § 1, part; RRS § 10417, part.]
A33: Notes:
A34: Severability -- Legislative review -- 1985 c 450: See RCW 80.36.900 and 80.36.901.

Sheet Pub Util Tax
A1: State Utility Tax | C1: Link updated as of 7/28/2020
A2: https://dor.wa.gov/find-taxes-rates/other-taxes/public-utility-tax
C3: Electric | D3: 0.038734
C4: Gas | D4: 0.03852
A44: =+#REF! -> 
